[Event "December 19 Early 2023"]
[Site "https://www.chess.com"]
[Date "2023.12.19"]
[Round "11"]
[White "Deveci, Huseyin Said"]
[Black "Kahlert, Thomas"]
[Result "1/2-1/2"]
[Board "127"]
[TimeControl "180+1"]
[WhiteFideId "26322455"]
[BlackFideId "4625242"]
[WhiteElo "1954"]
[BlackElo "2221"]
[WhiteTeam "TUR"]
[BlackTeam "GER"]
[WhiteClock "0:02:30"]
[BlackClock "0:02:15"]

1. e4 {[%clk 0:03:00]}  e5 {[%clk 0:02:59]} 2. Nf3 {[%clk 0:03:01]}  Nc6 {[%clk 0:02:59]} 3. Bb5 {[%clk 0:03:01]}  a6 {[%clk 0:02:58]} 4. Bxc6 {[%clk 0:03:01]}  dxc6 {[%clk 0:02:57]} 5. O-O {[%clk 0:03:02]}  Bd6 {[%clk 0:02:57]} 6. d4 {[%clk 0:03:01]}  exd4 {[%clk 0:02:58]} 7. Qxd4 {[%clk 0:03:02]}  f6 {[%clk 0:02:58]} 8. Nc3 {[%clk 0:03:02]}  Ne7 {[%clk 0:02:58]} 9. e5 {[%clk 0:03:01]}  fxe5 {[%clk 0:02:57]} 10. Nxe5 {[%clk 0:03:02]}  Be6 {[%clk 0:02:52]} 11. Bg5 {[%clk 0:02:51]}  O-O {[%clk 0:02:51]} 12. Rad1 {[%clk 0:02:50]}  Nf5 {[%clk 0:02:50]} 13. Bxd8 {[%clk 0:02:49]}  Nxd4 {[%clk 0:02:50]} 14. Rxd4 {[%clk 0:02:47]}  Bxe5 {[%clk 0:02:49]} 15. Re4 {[%clk 0:02:46]}  Bxc3 {[%clk 0:02:49]} 16. Rxe6 {[%clk 0:02:46]}  Raxd8 {[%clk 0:02:39]} 17. bxc3 {[%clk 0:02:45]}  Rd2 {[%clk 0:02:39]} 18. Re7 {[%clk 0:02:46]}  Rf7 {[%clk 0:02:39]} 19. Re8+ {[%clk 0:02:46]}  Rf8 {[%clk 0:02:39]} 20. Re7 {[%clk 0:02:47]}  Rxc2 {[%clk 0:02:36]} 21. Rxc7 {[%clk 0:02:47]}  Rxa2 {[%clk 0:02:29]} 22. Rxb7 {[%clk 0:02:47]}  Rc2 {[%clk 0:02:29]} 23. Rb6 {[%clk 0:02:42]}  Rxc3 {[%clk 0:02:28]} 24. Rxa6 {[%clk 0:02:42]}  h6 {[%clk 0:02:28]} 25. h3 {[%clk 0:02:37]}  Rf6 {[%clk 0:02:25]} 26. Re1 {[%clk 0:02:35]}  Rc2 {[%clk 0:02:23]} 27. Rf1 {[%clk 0:02:35]}  Kh7 {[%clk 0:02:22]} 28. g3 {[%clk 0:02:35]}  Kg6 {[%clk 0:02:22]} 29. Kg2 {[%clk 0:02:35]}  c5 {[%clk 0:02:23]} 30. Rxf6+ {[%clk 0:02:34]}  Kxf6 {[%clk 0:02:23]} 31. Kf3 {[%clk 0:02:35]}  Rc3+ {[%clk 0:02:22]} 32. Ke4 {[%clk 0:02:35]}  Ke6 {[%clk 0:02:19]} 33. Ra1 {[%clk 0:02:33]}  Rc4+ {[%clk 0:02:19]} 34. Kd3 {[%clk 0:02:33]}  Rd4+ {[%clk 0:02:19]} 35. Ke3 {[%clk 0:02:33]}  Rb4 {[%clk 0:02:18]} 36. Ra7 {[%clk 0:02:32]}  Kf6 {[%clk 0:02:16]} 37. Rc7 {[%clk 0:02:29]}  Rc4 {[%clk 0:02:16]} 38. Kd3 {[%clk 0:02:28]}  Rc1 {[%clk 0:02:15]} 39. Kd2 {[%clk 0:02:29]}  Rc4 {[%clk 0:02:15]} 40. Kd3 {[%clk 0:02:29]}  Rc1 {[%clk 0:02:15]} 41. Kd2 {[%clk 0:02:29]}  Rc4 {[%clk 0:02:15]} 42. Kd3 {[%clk 0:02:30]} 1/2-1/2

[Event "December 19 Early 2023"]
[Site "https://www.chess.com"]
[Date "2023.12.19"]
[Round "11"]
[White "Fernandez Hernandez, Gerardo"]
[Black "Gurevich, Dmitry"]
[Result "0-1"]
[Board "128"]
[TimeControl "180+1"]
[WhiteFideId "2207400"]
[BlackFideId "2000407"]
[WhiteElo "2264"]
[BlackElo "2506"]
[WhiteTeam "ESP"]
[BlackTeam "USA"]
[WhiteClock "0:00:00"]
[BlackClock "0:00:13"]

1. e4 {[%clk 0:03:00]}  c5 {[%clk 0:02:58]} 2. d3 {[%clk 0:03:01]}  d5 {[%clk 0:02:56]} 3. Nd2 {[%clk 0:03:00]}  Nf6 {[%clk 0:02:54]} 4. Ngf3 {[%clk 0:03:00]}  Nc6 {[%clk 0:02:52]} 5. g3 {[%clk 0:03:00]}  e5 {[%clk 0:02:51]} 6. Bg2 {[%clk 0:03:00]}  Be7 {[%clk 0:02:51]} 7. O-O {[%clk 0:03:00]}  O-O {[%clk 0:02:51]} 8. exd5 {[%clk 0:03:00]}  Nxd5 {[%clk 0:02:50]} 9. Re1 {[%clk 0:03:00]}  f6 {[%clk 0:02:49]} 10. c3 {[%clk 0:02:57]}  Kh8 {[%clk 0:02:46]} 11. Nh4 {[%clk 0:02:49]}  g5 {[%clk 0:02:44]} 12. Nhf3 {[%clk 0:02:27]}  Bf5 {[%clk 0:02:41]} 13. Ne4 {[%clk 0:02:21]}  Qd7 {[%clk 0:02:33]} 14. Nfd2 {[%clk 0:01:53]}  Rad8 {[%clk 0:02:22]} 15. a4 {[%clk 0:01:34]}  Nc7 {[%clk 0:02:17]} 16. Bf1 {[%clk 0:01:33]}  Ne6 {[%clk 0:02:12]} 17. Qh5 {[%clk 0:01:21]}  Bg6 {[%clk 0:02:11]} 18. Qh6 {[%clk 0:01:03]}  Rf7 {[%clk 0:02:04]} 19. Nc4 {[%clk 0:00:50]}  b6 {[%clk 0:01:58]} 20. Qh3 {[%clk 0:00:25]}  f5 {[%clk 0:01:30]} 21. Ned2 {[%clk 0:00:17]}  g4 {[%clk 0:01:27]} 22. Qg2 {[%clk 0:00:12]}  Bf6 {[%clk 0:01:19]} 23. f3 {[%clk 0:00:05]}  h5 {[%clk 0:01:13]} 24. fxg4 {[%clk 0:00:02]}  hxg4 {[%clk 0:01:12]} 25. h3 {[%clk 0:00:03]}  gxh3 {[%clk 0:01:08]} 26. Qxh3+ {[%clk 0:00:04]}  Kg7 {[%clk 0:01:05]} 27. Qg2 {[%clk 0:00:04]}  Ng5 {[%clk 0:00:48]} 28. Nf3 {[%clk 0:00:03]}  Nxf3+ {[%clk 0:00:44]} 29. Qxf3 {[%clk 0:00:04]}  Re8 {[%clk 0:00:38]} 30. Bg2 {[%clk 0:00:03]}  Nd8 {[%clk 0:00:36]} 31. Qd5 {[%clk 0:00:03]}  Qxd5 {[%clk 0:00:33]} 32. Bxd5 {[%clk 0:00:04]}  Rd7 {[%clk 0:00:32]} 33. Bg2 {[%clk 0:00:03]}  Ree7 {[%clk 0:00:29]} 34. Bf1 {[%clk 0:00:02]}  Nf7 {[%clk 0:00:28]} 35. Bd2 {[%clk 0:00:02]}  Re8 {[%clk 0:00:18]} 36. Rab1 {[%clk 0:00:02]}  Red8 {[%clk 0:00:18]} 37. Rbd1 {[%clk 0:00:01]}  Bh5 {[%clk 0:00:15]} 38. Rc1 {[%clk 0:00:01]}  Bg4 {[%clk 0:00:15]} 39. Kg2 {[%clk 0:00:00]}  Rxd3 {[%clk 0:00:13]} 0-1

[Event "December 19 Early 2023"]
[Site "https://www.chess.com"]
[Date "2023.12.19"]
[Round "11"]
[White "Bach, Matthias"]
[Black "Khodabandeh, Milad"]
[Result "1-0"]
[Board "129"]
[TimeControl "180+1"]
[WhiteFideId "4603168"]
[BlackFideId "12538620"]
[WhiteElo "2130"]
[BlackElo "1846"]
[WhiteTeam "GER"]
[BlackTeam "IRI"]
[WhiteClock "0:01:27"]
[BlackClock "0:00:08"]

1. d4 {[%clk 0:03:00]}  d5 {[%clk 0:02:51]} 2. c4 {[%clk 0:03:00]}  c6 {[%clk 0:02:47]} 3. Nc3 {[%clk 0:02:59]}  Nf6 {[%clk 0:02:47]} 4. Nf3 {[%clk 0:02:59]}  dxc4 {[%clk 0:02:47]} 5. e4 {[%clk 0:02:59]}  b5 {[%clk 0:02:46]} 6. Be2 {[%clk 0:02:59]}  e6 {[%clk 0:02:44]} 7. O-O {[%clk 0:02:58]}  Bb7 {[%clk 0:02:44]} 8. Rb1 {[%clk 0:02:57]}  Nbd7 {[%clk 0:02:43]} 9. b3 {[%clk 0:02:52]}  b4 {[%clk 0:02:42]} 10. bxc4 {[%clk 0:02:51]}  Qc7 {[%clk 0:02:28]} 11. e5 {[%clk 0:02:48]}  bxc3 {[%clk 0:02:20]} 12. exf6 {[%clk 0:02:47]}  Nxf6 {[%clk 0:02:20]} 13. Qb3 {[%clk 0:02:41]}  Rb8 {[%clk 0:02:11]} 14. Qxc3 {[%clk 0:02:40]}  c5 {[%clk 0:02:09]} 15. d5 {[%clk 0:02:35]}  exd5 {[%clk 0:02:07]} 16. cxd5 {[%clk 0:02:33]}  Nxd5 {[%clk 0:02:05]} 17. Bb5+ {[%clk 0:02:32]}  Kd8 {[%clk 0:01:59]} 18. Rd1 {[%clk 0:02:23]}  f6 {[%clk 0:01:23]} 19. Bc4 {[%clk 0:02:12]}  Qf7 {[%clk 0:00:41]} 20. Qd3 {[%clk 0:01:58]}  Bd6 {[%clk 0:00:12]} 21. Bxd5 {[%clk 0:01:56]}  Bxd5 {[%clk 0:00:11]} 22. Rxb8+ {[%clk 0:01:55]}  Bxb8 {[%clk 0:00:12]} 23. Qxd5+ {[%clk 0:01:56]}  Qxd5 {[%clk 0:00:11]} 24. Rxd5+ {[%clk 0:01:56]}  Ke7 {[%clk 0:00:08]} 25. Ba3 {[%clk 0:01:50]}  Bd6 {[%clk 0:00:07]} 26. Bxc5 {[%clk 0:01:48]}  Bxc5 {[%clk 0:00:06]} 27. Rxc5 {[%clk 0:01:47]}  Rb8 {[%clk 0:00:06]} 28. g3 {[%clk 0:01:46]}  Rb1+ {[%clk 0:00:03]} 29. Kg2 {[%clk 0:01:45]}  Rb7 {[%clk 0:00:03]} 30. Nd4 {[%clk 0:01:44]}  Kd6 {[%clk 0:00:03]} 31. Ra5 {[%clk 0:01:39]}  g6 {[%clk 0:00:02]} 32. Rxa7 {[%clk 0:01:37]}  Rxa7 {[%clk 0:00:01]} 33. Nb5+ {[%clk 0:01:37]}  Kc5 {[%clk 0:00:01]} 34. Nxa7 {[%clk 0:01:37]}  Kb4 {[%clk 0:00:01]} 35. Nc6+ {[%clk 0:01:31]}  Ka3 {[%clk 0:00:01]} 36. Kf3 {[%clk 0:01:27]}  Kxa2 {[%clk 0:00:02]} 37. Ke4 {[%clk 0:01:27]}  Kb3 {[%clk 0:00:03]} 38. Kd5 {[%clk 0:01:28]}  Kc3 {[%clk 0:00:04]} 39. Ke6 {[%clk 0:01:28]}  Kd3 {[%clk 0:00:04]} 40. Kxf6 {[%clk 0:01:28]}  Ke2 {[%clk 0:00:04]} 41. f4 {[%clk 0:01:27]}  Kf3 {[%clk 0:00:05]} 42. Kg7 {[%clk 0:01:28]}  Kg2 {[%clk 0:00:05]} 43. Kxh7 {[%clk 0:01:28]}  Kxh2 {[%clk 0:00:05]} 44. Kxg6 {[%clk 0:01:28]}  Kxg3 {[%clk 0:00:06]} 45. f5 {[%clk 0:01:29]}  Kf4 {[%clk 0:00:06]} 46. f6 {[%clk 0:01:30]}  Ke4 {[%clk 0:00:07]} 47. f7 {[%clk 0:01:30]}  Kd5 {[%clk 0:00:08]} 48. f8=Q {[%clk 0:01:29]}  Kxc6 {[%clk 0:00:08]} 49. Kf6 {[%clk 0:01:27]}  Kd5 {[%clk 0:00:08]} 1-0

[Event "December 19 Early 2023"]
[Site "https://www.chess.com"]
[Date "2023.12.19"]
[Round "11"]
[White "Zhuk, Valeriy"]
[Black "Vila Dupla, Aurelio"]
[Result "1-0"]
[Board "130"]
[TimeControl "180+1"]
[WhiteFideId "24151254"]
[BlackFideId "2203383"]
[WhiteElo "2148"]
[BlackElo "2009"]
[WhiteTeam "RUS"]
[BlackTeam "ESP"]
[WhiteClock "0:00:42"]
[BlackClock "0:00:00"]

1. Nf3 {[%clk 0:03:00]}  Nf6 {[%clk 0:02:59]} 2. c4 {[%clk 0:03:00]}  g6 {[%clk 0:02:55]} 3. Nc3 {[%clk 0:02:59]}  d5 {[%clk 0:02:52]} 4. cxd5 {[%clk 0:02:59]}  Nxd5 {[%clk 0:02:53]} 5. Qb3 {[%clk 0:02:59]}  c6 {[%clk 0:02:46]} 6. d4 {[%clk 0:02:51]}  Bg7 {[%clk 0:02:45]} 7. e4 {[%clk 0:02:50]}  Nxc3 {[%clk 0:02:43]} 8. bxc3 {[%clk 0:02:49]}  O-O {[%clk 0:02:38]} 9. h4 {[%clk 0:02:33]}  Qb6 {[%clk 0:02:05]} 10. h5 {[%clk 0:02:25]}  Be6 {[%clk 0:02:02]} 11. Bc4 {[%clk 0:02:20]}  Bxc4 {[%clk 0:01:47]} 12. Qxc4 {[%clk 0:02:20]}  Qa6 {[%clk 0:01:47]} 13. Qe2 {[%clk 0:01:59]}  c5 {[%clk 0:01:28]} 14. hxg6 {[%clk 0:01:40]}  hxg6 {[%clk 0:01:27]} 15. Bh6 {[%clk 0:01:40]}  cxd4 {[%clk 0:00:57]} 16. cxd4 {[%clk 0:01:33]}  Qxe2+ {[%clk 0:00:50]} 17. Kxe2 {[%clk 0:01:34]}  Nc6 {[%clk 0:00:50]} 18. Bxg7 {[%clk 0:01:32]}  Kxg7 {[%clk 0:00:51]} 19. d5 {[%clk 0:01:32]}  Nb4 {[%clk 0:00:42]} 20. Rab1 {[%clk 0:01:21]}  Nxa2 {[%clk 0:00:33]} 21. Rxb7 {[%clk 0:01:20]}  a5 {[%clk 0:00:22]} 22. Rxe7 {[%clk 0:01:18]}  a4 {[%clk 0:00:22]} 23. Ne5 {[%clk 0:01:05]}  a3 {[%clk 0:00:16]} 24. Nc4 {[%clk 0:01:04]}  Nc3+ {[%clk 0:00:15]} 25. Kd3 {[%clk 0:01:03]}  a2 {[%clk 0:00:16]} 26. Ra1 {[%clk 0:01:02]}  Nd1 {[%clk 0:00:10]} 27. e5 {[%clk 0:01:01]}  Nxf2+ {[%clk 0:00:09]} 28. Kd4 {[%clk 0:01:00]}  Ng4 {[%clk 0:00:04]} 29. d6 {[%clk 0:00:51]}  Ra4 {[%clk 0:00:03]} 30. d7 {[%clk 0:00:44]}  Rd8 {[%clk 0:00:00]} 31. Kd5 {[%clk 0:00:42]} 1-0

[Event "December 19 Early 2023"]
[Site "https://www.chess.com"]
[Date "2023.12.19"]
[Round "11"]
[White "Vigoa Apecheche, Yanira"]
[Black "Cramling Bellon, Anna"]
[Result "1-0"]
[Board "131"]
[TimeControl "180+1"]
[WhiteFideId "3507041"]
[BlackFideId "32009232"]
[WhiteElo "2276"]
[BlackElo "1976"]
[WhiteTeam "USA"]
[BlackTeam "SWE"]
[WhiteClock "0:00:41"]
[BlackClock "0:00:00"]

1. d4 {[%clk 0:03:00]}  d5 {[%clk 0:02:58]} 2. Nf3 {[%clk 0:02:59]}  c5 {[%clk 0:02:58]} 3. c3 {[%clk 0:02:56]}  Nc6 {[%clk 0:02:56]} 4. Bf4 {[%clk 0:02:54]}  Nf6 {[%clk 0:02:52]} 5. e3 {[%clk 0:02:53]}  Qb6 {[%clk 0:02:52]} 6. Qb3 {[%clk 0:02:51]}  c4 {[%clk 0:02:50]} 7. Qxb6 {[%clk 0:02:51]}  axb6 {[%clk 0:02:50]} 8. Be2 {[%clk 0:02:51]}  b5 {[%clk 0:02:46]} 9. O-O {[%clk 0:02:51]}  b4 {[%clk 0:02:40]} 10. cxb4 {[%clk 0:02:50]}  Nxb4 {[%clk 0:02:39]} 11. Nc3 {[%clk 0:02:48]}  Bd7 {[%clk 0:02:35]} 12. Ne5 {[%clk 0:02:46]}  e6 {[%clk 0:02:31]} 13. Bf3 {[%clk 0:02:38]}  Be7 {[%clk 0:02:21]} 14. h3 {[%clk 0:02:24]}  Rg8 {[%clk 0:01:59]} 15. a3 {[%clk 0:02:21]}  Nc6 {[%clk 0:01:43]} 16. Nxd7 {[%clk 0:01:44]}  Kxd7 {[%clk 0:01:39]} 17. Rad1 {[%clk 0:01:44]}  g5 {[%clk 0:01:37]} 18. Bg3 {[%clk 0:01:41]}  h5 {[%clk 0:01:34]} 19. e4 {[%clk 0:01:24]}  h4 {[%clk 0:00:29]} 20. Be5 {[%clk 0:01:22]}  g4 {[%clk 0:00:09]} 21. hxg4 {[%clk 0:01:20]}  Nxg4 {[%clk 0:00:08]} 22. exd5 {[%clk 0:01:19]}  Ncxe5 {[%clk 0:00:05]} 23. dxe5 {[%clk 0:01:18]}  Bc5 {[%clk 0:00:03]} 24. dxe6+ {[%clk 0:01:08]}  Kxe6 {[%clk 0:00:03]} 25. Bd5+ {[%clk 0:01:08]}  Ke7 {[%clk 0:00:02]} 26. Ne4 {[%clk 0:01:03]}  Bb6 {[%clk 0:00:01]} 27. Bxc4 {[%clk 0:00:56]}  h3 {[%clk 0:00:01]} 28. g3 {[%clk 0:00:54]}  Nxe5 {[%clk 0:00:02]} 29. Be2 {[%clk 0:00:50]}  h2+ {[%clk 0:00:01]} 30. Kxh2 {[%clk 0:00:48]}  f5 {[%clk 0:00:01]} 31. Nc3 {[%clk 0:00:45]}  Rh8+ {[%clk 0:00:02]} 32. Kg2 {[%clk 0:00:45]}  Ng4 {[%clk 0:00:02]} 33. Bxg4 {[%clk 0:00:44]}  fxg4 {[%clk 0:00:03]} 34. Nd5+ {[%clk 0:00:44]}  Kf7 {[%clk 0:00:02]} 35. Nxb6 {[%clk 0:00:44]}  Rae8 {[%clk 0:00:02]} 36. Rh1 {[%clk 0:00:42]}  Rhg8 {[%clk 0:00:00]} 37. Rh7+ {[%clk 0:00:41]} 1-0

[Event "December 19 Early 2023"]
[Site "https://www.chess.com"]
[Date "2023.12.19"]
[Round "11"]
[White "Sanchez Alvares, Kelvin Antonio"]
[Black "Mende, Andreas"]
[Result "0-1"]
[Board "133"]
[TimeControl "180+1"]
[WhiteFideId "3906680"]
[BlackFideId "4631102"]
[WhiteElo "2217"]
[BlackElo "2095"]
[WhiteTeam "VEN"]
[BlackTeam "GER"]
[WhiteClock "0:00:00"]
[BlackClock "0:00:58"]

1. e4 {[%clk 0:03:00]}  c5 {[%clk 0:02:59]} 2. Nf3 {[%clk 0:03:00]}  Nc6 {[%clk 0:02:59]} 3. d4 {[%clk 0:02:59]}  cxd4 {[%clk 0:02:59]} 4. Nxd4 {[%clk 0:03:00]}  Nf6 {[%clk 0:02:59]} 5. Nc3 {[%clk 0:02:59]}  e5 {[%clk 0:02:59]} 6. Ndb5 {[%clk 0:02:58]}  d6 {[%clk 0:02:59]} 7. Bg5 {[%clk 0:02:54]}  a6 {[%clk 0:02:59]} 8. Na3 {[%clk 0:02:54]}  b5 {[%clk 0:02:59]} 9. Nd5 {[%clk 0:02:55]}  Be7 {[%clk 0:02:59]} 10. Bxf6 {[%clk 0:02:55]}  Bxf6 {[%clk 0:02:59]} 11. c4 {[%clk 0:02:55]}  b4 {[%clk 0:02:58]} 12. Nc2 {[%clk 0:02:55]}  a5 {[%clk 0:02:58]} 13. g3 {[%clk 0:02:46]}  O-O {[%clk 0:02:54]} 14. Bg2 {[%clk 0:02:46]}  Bg5 {[%clk 0:02:54]} 15. O-O {[%clk 0:02:45]}  Be6 {[%clk 0:02:52]} 16. b3 {[%clk 0:02:41]}  Qb8 {[%clk 0:02:24]} 17. f4 {[%clk 0:02:19]}  Bd8 {[%clk 0:02:14]} 18. f5 {[%clk 0:01:51]}  Bxd5 {[%clk 0:02:12]} 19. exd5 {[%clk 0:01:44]}  Nd4 {[%clk 0:02:08]} 20. Kh1 {[%clk 0:01:35]}  Nxc2 {[%clk 0:01:58]} 21. Qxc2 {[%clk 0:01:33]}  Bf6 {[%clk 0:01:52]} 22. Be4 {[%clk 0:01:31]}  Qb6 {[%clk 0:01:50]} 23. Rac1 {[%clk 0:01:21]}  a4 {[%clk 0:01:48]} 24. c5 {[%clk 0:00:48]}  dxc5 {[%clk 0:01:45]} 25. Qxc5 {[%clk 0:00:47]}  Qxc5 {[%clk 0:01:38]} 26. Rxc5 {[%clk 0:00:48]}  axb3 {[%clk 0:01:37]} 27. axb3 {[%clk 0:00:48]}  Ra3 {[%clk 0:01:33]} 28. Rf3 {[%clk 0:00:34]}  Rd8 {[%clk 0:01:24]} 29. Rd3 {[%clk 0:00:30]}  Be7 {[%clk 0:01:22]} 30. Rc7 {[%clk 0:00:25]}  Bd6 {[%clk 0:01:22]} 31. Rb7 {[%clk 0:00:19]}  Ra1+ {[%clk 0:01:11]} 32. Kg2 {[%clk 0:00:19]}  Ra2+ {[%clk 0:01:11]} 33. Kh3 {[%clk 0:00:13]}  Re2 {[%clk 0:01:11]} 34. Bf3 {[%clk 0:00:09]}  Re1 {[%clk 0:01:11]} 35. Rd2 {[%clk 0:00:05]}  e4 {[%clk 0:01:11]} 36. Be2 {[%clk 0:00:04]}  Be5 {[%clk 0:01:02]} 37. d6 {[%clk 0:00:02]}  Bc3 {[%clk 0:01:00]} 38. Rd1 {[%clk 0:00:02]}  Rxe2 {[%clk 0:00:59]} 39. d7 {[%clk 0:00:00]}  Rd2 {[%clk 0:00:58]} 0-1

[Event "December 19 Early 2023"]
[Site "https://www.chess.com"]
[Date "2023.12.19"]
[Round "11"]
[White "Dilmukhametov, Artur"]
[Black "Demina, Marya"]
[Result "0-1"]
[Board "136"]
[TimeControl "180+1"]
[WhiteFideId "24179922"]
[BlackFideId "4195671"]
[WhiteElo "2176"]
[BlackElo "1978"]
[WhiteTeam "RUS"]
[BlackTeam "RUS"]
[WhiteClock "0:00:07"]
[BlackClock "0:00:05"]

1. e4 {[%clk 0:03:00]}  c6 {[%clk 0:02:59]} 2. d4 {[%clk 0:02:58]}  d5 {[%clk 0:03:00]} 3. e5 {[%clk 0:02:58]}  Bf5 {[%clk 0:03:00]} 4. h4 {[%clk 0:02:58]}  h5 {[%clk 0:03:00]} 5. Bd3 {[%clk 0:02:59]}  Bxd3 {[%clk 0:03:00]} 6. Qxd3 {[%clk 0:02:59]}  e6 {[%clk 0:03:00]} 7. Bg5 {[%clk 0:02:58]}  Qb6 {[%clk 0:02:56]} 8. Nd2 {[%clk 0:02:58]}  c5 {[%clk 0:02:55]} 9. c4 {[%clk 0:02:58]}  Qxb2 {[%clk 0:02:41]} 10. Rb1 {[%clk 0:02:53]}  Qxd4 {[%clk 0:02:41]} 11. Qxd4 {[%clk 0:02:48]}  cxd4 {[%clk 0:02:42]} 12. Rxb7 {[%clk 0:02:45]}  Nc6 {[%clk 0:02:25]} 13. Ngf3 {[%clk 0:02:42]}  Bb4 {[%clk 0:02:16]} 14. O-O {[%clk 0:02:39]}  Nge7 {[%clk 0:02:13]} 15. Rb1 {[%clk 0:02:36]}  Bc3 {[%clk 0:02:07]} 16. Rc7 {[%clk 0:02:09]}  Rc8 {[%clk 0:01:48]} 17. Rbb7 {[%clk 0:01:37]}  Rxc7 {[%clk 0:01:47]} 18. Rxc7 {[%clk 0:01:37]}  Ba5 {[%clk 0:01:37]} 19. Rb7 {[%clk 0:01:31]}  d3 {[%clk 0:00:58]} 20. Bxe7 {[%clk 0:01:30]}  Nxe7 {[%clk 0:00:55]} 21. cxd5 {[%clk 0:01:15]}  Nxd5 {[%clk 0:00:46]} 22. Rxa7 {[%clk 0:01:12]}  Bxd2 {[%clk 0:00:39]} 23. Ra8+ {[%clk 0:01:07]}  Ke7 {[%clk 0:00:35]} 24. Rxh8 {[%clk 0:01:07]}  Bb4 {[%clk 0:00:26]} 25. Rxh5 {[%clk 0:01:02]}  Nc3 {[%clk 0:00:19]} 26. Rh7 {[%clk 0:00:54]}  Nxa2 {[%clk 0:00:07]} 27. Rxg7 {[%clk 0:00:54]}  d2 {[%clk 0:00:07]} 28. Nxd2 {[%clk 0:00:54]}  Bxd2 {[%clk 0:00:08]} 29. h5 {[%clk 0:00:48]}  Nc3 {[%clk 0:00:07]} 30. Rg8 {[%clk 0:00:42]}  Ne4 {[%clk 0:00:07]} 31. g4 {[%clk 0:00:33]}  Ng5 {[%clk 0:00:06]} 32. Ra8 {[%clk 0:00:30]}  Nf3+ {[%clk 0:00:06]} 33. Kg2 {[%clk 0:00:30]}  Nxe5 {[%clk 0:00:06]} 34. Ra2 {[%clk 0:00:27]}  Bh6 {[%clk 0:00:06]} 35. f3 {[%clk 0:00:26]}  Nd3 {[%clk 0:00:06]} 36. Ra7+ {[%clk 0:00:23]}  Kf6 {[%clk 0:00:05]} 37. Kg3 {[%clk 0:00:23]}  Bf4+ {[%clk 0:00:05]} 38. Kg2 {[%clk 0:00:23]}  e5 {[%clk 0:00:05]} 39. Ra6+ {[%clk 0:00:23]}  Kg7 {[%clk 0:00:05]} 40. Ra3 {[%clk 0:00:22]}  Nc5 {[%clk 0:00:06]} 41. Ra5 {[%clk 0:00:21]}  Ne6 {[%clk 0:00:06]} 42. Ra6 {[%clk 0:00:21]}  Ng5 {[%clk 0:00:06]} 43. h6+ {[%clk 0:00:18]}  Kh7 {[%clk 0:00:06]} 44. Kf2 {[%clk 0:00:16]}  Ne6 {[%clk 0:00:06]} 45. Ra7 {[%clk 0:00:15]}  Kg6 {[%clk 0:00:07]} 46. h7 {[%clk 0:00:14]}  Kxh7 {[%clk 0:00:07]} 47. Rxf7+ {[%clk 0:00:14]}  Kg6 {[%clk 0:00:08]} 48. Re7 {[%clk 0:00:14]}  Kf6 {[%clk 0:00:08]} 49. Ra7 {[%clk 0:00:13]}  Nd4 {[%clk 0:00:08]} 50. Ra6+ {[%clk 0:00:13]}  Kg5 {[%clk 0:00:08]} 51. Ra5 {[%clk 0:00:13]}  Kf6 {[%clk 0:00:08]} 52. Ra6+ {[%clk 0:00:14]}  Kg5 {[%clk 0:00:08]} 53. Ra8 {[%clk 0:00:14]}  Kf6 {[%clk 0:00:09]} 54. Rf8+ {[%clk 0:00:14]}  Ke7 {[%clk 0:00:09]} 55. Ra8 {[%clk 0:00:13]}  Ke6 {[%clk 0:00:09]} 56. Kg2 {[%clk 0:00:12]}  Ne2 {[%clk 0:00:08]} 57. Ra3 {[%clk 0:00:12]}  Nd4 {[%clk 0:00:07]} 58. Kh3 {[%clk 0:00:12]}  Nc6 {[%clk 0:00:07]} 59. Kh4 {[%clk 0:00:12]}  Ne7 {[%clk 0:00:07]} 60. g5 {[%clk 0:00:12]}  Nf5+ {[%clk 0:00:07]} 61. Kg4 {[%clk 0:00:13]}  Ne3+ {[%clk 0:00:06]} 62. Kh5 {[%clk 0:00:13]}  Nf5 {[%clk 0:00:06]} 63. g6 {[%clk 0:00:13]}  Kf6 {[%clk 0:00:05]} 64. Ra6+ {[%clk 0:00:13]}  Kg7 {[%clk 0:00:05]} 65. Ra7+ {[%clk 0:00:13]}  Kf6 {[%clk 0:00:06]} 66. Rf7+ {[%clk 0:00:13]}  Ke6 {[%clk 0:00:05]} 67. g7 {[%clk 0:00:12]}  Kxf7 {[%clk 0:00:05]} 68. Kg4 {[%clk 0:00:07]}  Nxg7 {[%clk 0:00:05]} 0-1

[Event "December 19 Early 2023"]
[Site "https://www.chess.com"]
[Date "2023.12.19"]
[Round "11"]
[White "Kohler, Aran"]
[Black "Quirke, Jeffrey"]
[Result "1-0"]
[Board "137"]
[TimeControl "180+1"]
[WhiteFideId "1002856"]
[BlackFideId "2013029"]
[WhiteElo "2273"]
[BlackElo "2152"]
[WhiteTeam "NED"]
[BlackTeam "USA"]
[WhiteClock "0:00:26"]
[BlackClock "0:00:00"]

1. d4 {[%clk 0:03:00]}  e6 {[%clk 0:02:59]} 2. Nf3 {[%clk 0:03:01]}  c5 {[%clk 0:02:58]} 3. c3 {[%clk 0:03:00]}  Nf6 {[%clk 0:02:56]} 4. Bg5 {[%clk 0:02:58]}  Qb6 {[%clk 0:02:53]} 5. Qb3 {[%clk 0:02:55]}  Ne4 {[%clk 0:02:48]} 6. Bc1 {[%clk 0:02:45]}  d5 {[%clk 0:02:40]} 7. e3 {[%clk 0:02:43]}  Nc6 {[%clk 0:02:37]} 8. Bb5 {[%clk 0:02:35]}  Bd7 {[%clk 0:02:34]} 9. Nbd2 {[%clk 0:02:26]}  Nxd2 {[%clk 0:02:33]} 10. Bxd2 {[%clk 0:02:21]}  Be7 {[%clk 0:02:26]} 11. Bxc6 {[%clk 0:02:05]}  bxc6 {[%clk 0:02:22]} 12. O-O {[%clk 0:02:01]}  O-O {[%clk 0:02:19]} 13. Qc2 {[%clk 0:01:56]}  Rfb8 {[%clk 0:02:12]} 14. Rfb1 {[%clk 0:01:55]}  a5 {[%clk 0:02:12]} 15. Ne5 {[%clk 0:01:53]}  Be8 {[%clk 0:02:11]} 16. a4 {[%clk 0:01:52]}  f6 {[%clk 0:02:07]} 17. Nf3 {[%clk 0:01:51]}  Bg6 {[%clk 0:02:07]} 18. Qd1 {[%clk 0:01:48]}  Bxb1 {[%clk 0:02:06]} 19. Rxb1 {[%clk 0:01:49]}  cxd4 {[%clk 0:01:57]} 20. Nxd4 {[%clk 0:01:45]}  e5 {[%clk 0:01:57]} 21. Nf5 {[%clk 0:01:44]}  Bf8 {[%clk 0:01:58]} 22. Qg4 {[%clk 0:01:43]}  Rb7 {[%clk 0:01:48]} 23. e4 {[%clk 0:01:40]}  Kh8 {[%clk 0:01:43]} 24. Be3 {[%clk 0:01:38]}  Qd8 {[%clk 0:01:39]} 25. exd5 {[%clk 0:01:37]}  cxd5 {[%clk 0:01:37]} 26. h4 {[%clk 0:01:34]}  Rab8 {[%clk 0:01:32]} 27. b4 {[%clk 0:01:27]}  axb4 {[%clk 0:01:30]} 28. cxb4 {[%clk 0:01:27]}  g6 {[%clk 0:01:23]} 29. Ng3 {[%clk 0:01:17]}  Rxb4 {[%clk 0:01:20]} 30. Rxb4 {[%clk 0:01:11]}  Rxb4 {[%clk 0:01:20]} 31. Qd1 {[%clk 0:01:12]}  Qa8 {[%clk 0:00:48]} 32. a5 {[%clk 0:01:06]}  Qxa5 {[%clk 0:00:43]} 33. Bd2 {[%clk 0:01:06]}  d4 {[%clk 0:00:37]} 34. Bxb4 {[%clk 0:01:05]}  Qxb4 {[%clk 0:00:36]} 35. Ne4 {[%clk 0:01:05]}  Bg7 {[%clk 0:00:33]} 36. h5 {[%clk 0:00:59]}  g5 {[%clk 0:00:16]} 37. h6 {[%clk 0:00:54]}  Bxh6 {[%clk 0:00:15]} 38. Nxf6 {[%clk 0:00:54]}  Bg7 {[%clk 0:00:10]} 39. Qf3 {[%clk 0:00:49]}  h6 {[%clk 0:00:09]} 40. Nh5 {[%clk 0:00:41]}  Qf8 {[%clk 0:00:09]} 41. Qe4 {[%clk 0:00:40]}  Qd8 {[%clk 0:00:07]} 42. Nxg7 {[%clk 0:00:39]}  Kxg7 {[%clk 0:00:06]} 43. Qxe5+ {[%clk 0:00:39]}  Qf6 {[%clk 0:00:06]} 44. Qe4 {[%clk 0:00:40]}  Qd6 {[%clk 0:00:05]} 45. Qb7+ {[%clk 0:00:39]}  Kg6 {[%clk 0:00:05]} 46. Qe4+ {[%clk 0:00:40]}  Kg7 {[%clk 0:00:05]} 47. Qd3 {[%clk 0:00:40]}  Qd5 {[%clk 0:00:04]} 48. f3 {[%clk 0:00:34]}  h5 {[%clk 0:00:03]} 49. Kh2 {[%clk 0:00:31]}  h4 {[%clk 0:00:04]} 50. Kh1 {[%clk 0:00:30]}  Qe5 {[%clk 0:00:04]} 51. Qa6 {[%clk 0:00:27]}  Qe1+ {[%clk 0:00:02]} 52. Kh2 {[%clk 0:00:27]}  Qg3+ {[%clk 0:00:02]} 53. Kh1 {[%clk 0:00:27]}  h3 {[%clk 0:00:02]} 54. Qb7+ {[%clk 0:00:26]}  Kg6 {[%clk 0:00:00]} 55. Qc6+ {[%clk 0:00:26]} 1-0